Workbook

Sheet Rentabilitet
B2: Investering:
B4: Ændret indtjening
B5: Produktion | E5: Enheder | F5: DB pr. enhed | G5: Årlig indtjening
G6: =E6*F6 -> 0 | I6: =IF(G6<>0,1,2) -> 2
G7: 0 | I7: 2
G8: =E8*F8 -> 0 | I8: =IF(G8<>0,1,2) -> 2
G9: 0 | I9: 2
G10: 0 | I10: 2
G11: 0 | I11: 2
G12: 0 | I12: 2
B13: I alt | G13: =SUM(G6:G12) -> 0 | I13: 1
I14: 1
B15: Ændrede gns. kapitalomk. | D15: Kalk.rente: | E15: 0.05 | F15: Intern rente: | G15: 0 | I15: 1
B16: Investering | C16: Beløb | D16: Levetid | E16: Scrap | F16: Kap.ind.fakt. | G16: Årlig omkost. | I16: 1
B17: Bygninger | D17: 25 | F17: =IF(G17=0,"",G17/C17*100) ->  | G17: =PMT($E$15,D17,C17,-E17) -> 0 | I17: =IF(G17<>0,1,2) -> 2
B18: Inventar | D18: 12.5 | F18: =IF(G18=0,"",G18/C18*100) ->  | G18: =PMT($E$15,D18,C18,-E18) -> 0 | I18: 2
B19: Besætning | D19: ∞ | E19: =C19 -> 0 | F19: =$E$15*-100 -> -5 | G19: =C19*F19/100 -> 0 | I19: 2
B20: Jord | D20: ∞ | E20: =C20 -> 0 | F20: =$E$15*-100 -> -5 | G20: =C20*F20/100 -> 0 | I20: 2
B21: Beholdninger | D21: ∞ | E21: =C21 -> 0 | F21: =$E$15*-100 -> -5 | G21: =C21*F21/100 -> 0 | I21: 2
D22: 12.5 | F22: =IF(G22=0,"",G22/C22*100) ->  | G22: =PMT($E$15,D22,C22,-E22) -> 0 | I22: 2
D23: 12.5 | F23: =IF(G23=0,"",G23/C23*100) ->  | G23: =PMT($E$15,D23,C23,-E23) -> 0 | I23: 2
D24: 12.5 | F24: =IF(G24=0,"",G24/C24*100) ->  | G24: =PMT($E$15,D24,C24,-E24) -> 0 | I24: 2
B25: Indkøringstab | D25: 12.5 | F25: =IF(G25=0,"",G25/C25*100) ->  | G25: =PMT($E$15,D25,C25,-E25) -> 0 | I25: 2
B26: Investeringssum i alt> | C26: =SUM(C17:C25) -> 0 | D26: Kapitalomkostninger i alt> | G26: =SUM(G17:G25) -> 0 | I26: 1
I27: 1
B28: Ændrede kontante kapacitetsomkostninger | G28: Årlig omkost. | I28: 1
B29: Energi | I29: =IF(G29<>0,1,2) -> 2
B30: Maskinstation | I30: 2
B31: Vedligehold | I31: 2
B32: Lønomkostninger | I32: =IF(G32<>0,1,2) -> 2
B33: Ejd. skat og forsikringer | I33: 2
B34: Diverse omkostninger | I34: 2
B35: I alt | G35: =SUM(G29:G34)*-1 -> 0
B37: Årligt overskud/underskud
B38: Gennemsnitlig øget indtjening | G38: =G13 -> 0
B39: Ændrede gns. kapitalomkostninger | G39: =G26 -> 0
B40: Ændrede gns. kontante kapacitetsomkostninger | G40: =G35 -> 0
B41: Årligt overskud/underskud i | C41: =MAX(D17:D25) -> 25 | G41: =SUM(G38:G40) -> 0
G42: © CHA 21.09.2023

Sheet InveKK
A1: 2 | B1: RENTABILITET FØR SKAT | L1: RENTABILITET EFTER SKAT | U1: 1 | V1: Jordbrug | W1: Udbytte | X1: Stykomk. | Y1: Kap.omk. | AB1: 1 | AH1: Forklaring af skattevirkningen
L2: Fortjeneste og tab medregnes i slutår. Forudsætter anden positiv indkomst for sparet skat | U2: 2 | V2: Erhverv | W2: Omsætning | X2: Var. omk. | Y2: Faste omk. | AI2: Kapitalværdi før skat | AL2: =$D$4 -> 3374986.078 | AO2: fra beregningen i InveKK, celle D4
B3: Kalkulationsrente | D3: KAPITALVÆRDI | F3: INTERN RENTE | H3: ANNUITETSMETODE | J3: Gns. afkast | K3: =PMT(B4,B9,NPV(B4,H12:H41),0)*-1 -> 656333 | L3: KAPITALVÆRDI EFTER SKAT | O3: INTERN RENTE EFTER SKAT | R3: ANNUITETSMETODE | AH3: + Nutidsværdi beskatning af afkast (1) | AK3: =NPV($B$4,BF12:BF41) -> -2027211.781 | AO3: nutidsværdi med rente før skat af "skat afkast", kolonne BF
B4: 0.05 | D4: =NPV(B4,I12:I41)+I11 -> 3374986.078 | E4: kr. | F4: =IRR(I11:I41)*100 -> 31.15483769 | G4: % | H4: =K3+K4 -> 437076.1376 | I4: kr. | J4: GKO | K4: =PMT(B4,B9,B6,-C11) -> -219256.8624 | L4: =NPV(L9,Q12:Q41)+Q11 -> 2300297.706 | M4: kr. | O4: =IRR(Q11:Q41)*100 -> 22.23163737 | P4: % | R4: =PMT(L9,B9,-L4) -> 269665.0655 | S4: kr. | AH4: + Nutidsværdi sparet skat af afskr. (2) | AK4: =NPV($B$4,BG12:BG41) -> 548493.5644 | AO4: nutidsværdi med rente før skat af "sparet skat af afskr.", kolonne BG
B5: Investering | C5: Scrapværdi | D5: =VLOOKUP($AB$1,$U$1:$Z$2,3) -> Udbytte | E5: =VLOOKUP($AB$1,$U$1:$Z$2,4) -> Stykomk. | F5: DB | G5: =VLOOKUP($AB$1,$U$1:$Z$2,5) -> Kap.omk. | H5: Nettobet. | I5: Pay back | J5: LIKVIDITET | L5: Afskr.-metode: | M5: s | N5: "s" for saldo "l" for lineær | Q5: Pay back | R5: LIKVIDITET | AH5: + Nutidsværdi sparet skat af renter (3) | AK5: =AL7-AK4-AK3-AL2 -> 404029.8445 | AO5: beregnet som forskellen i kapitalværdi som følge af rente før og efter skat (*)
B6: 2000000 | C6: 500000 | D6: 2000000 | E6: 1332667 | F6: =D6-E6 -> 667333 | G6: 11000 | H6: =F6-G6 -> 656333 | I6: =IF(AG10=0,"",AG10) -> 4 | J6: Slutsaldo | K6: =VLOOKUP($B$9,A11:K41,11) -> 5497496.688 | L6: Afskr.-procent: | M6: 25 | N6: Indtast afskrivnings% | Q6: =AF10 -> 5 | R6: Slutsaldo | S6: =VLOOKUP($B$9,A11:S41,19) -> 3091407.765 | AH6: = Skattevirkning i alt | AK6: =SUM(AK3:AK5) -> -1074688.372 | AL6: =AK6 -> -1074688.372 | AO6: sum af de tre faktorer i skattevirkningen
B7: =B6+D4 -> 5374986.078 | C7: =(D4*((1+B4)/(1+C9))^B9)*-1+C6 -> -4997496.688 | D7: =PMT((1+$B$4)/(1+D9)-1,$B$9,$D$4)+D6 -> 1562923.862 | E7: =PMT((1+$B$4)/(1+E9)-1,$B$9,$D$4)*-1+E6 -> 1769743.138 | F7: =F6+PMT((1+$B$4)/(1+F9)-1,$B$9,$D$4) -> 230256.8624 | G7: =PMT((1+$B$4)/(1+G9)-1,$B$9,$D$4)*-1+G6 -> 448076.1376 | H7: =H6+PMT((1+$B$4)/(1+H9)-1,$B$9,$D$4) -> 219256.8624 | I7: Tilbage- | J7: =k.værdi år | K7: =B9 -> 10 | L7: Efter skat | M7: Afskr. % | O7: = Kolonner | P7: Skatte | Q7: = Kolonner | R7: =k.værdi år | S7: =B9 -> 10 | AI7: = Kapitalværdi efter skat | AL7: =$L$4 -> 2300297.706 | AO7: fra beregningen i InveKK, celle L4
B8: Levetid i år | C8: Prisstign.% | D8: Prisstign.% | E8: Prisstign.% | F8: Prisstign.% | G8: Prisstign.% | H8: Prisstign.% | I8: betaling i år | J8: K.værdi år 0 | K8: =K6/(1+B4)^B9 -> 3374986.078 | L8: rente % | M8: =M6 -> 25 | N8: 1 | O8: H + M + N | P8: procent | Q8: C + H + P | R8: K.værdi år 0 | S8: =S6/(1+L9)^B9 -> 2300297.706 | BE8: Til forklaring af skattevirkning
B9: 10 | F9: =(F12/F6)-1 -> 0 | H9: =IF(AND(A9=2,B6>0),"Ej relevant",((H12/H6)-1)) -> 0 | L9: =B4*(1-P9) -> 0.03 | M9: =IF(M8=0,"Ingen",IF(M5="l","Lineær",IF(M5="s","Saldo",""))) -> Saldo | N9: Genvundne | O9: Beskatnings- | P9: 0.4 | Q9: Nettobet. | R9: Rente | S9: Saldo | AF9: Efter skat | AG9: Før skat | AO9: * | BF9: Skat af | BG9: Sparet
A10: År | B10: Investering | C10: =IF($C$11<>0,-RATE($B$9,0,$B$6,-$C$11),"Scrapværdi") -> 0.1294494367 | D10: Udbytte | E10: Stykomk. | F10: DB | G10: Kap.omk. | H10: Afkast | I10: Bet.strøm | J10: Rente | K10: Saldo | L10: Afskr-saldo | M10: Afskrivning | N10: afskrivninger | O10: grundlag | P10: Skat | Q10: efter skat | R10: efter skat | S10: efter skat | AF10: =MIN(AF11:AF41) -> 5 | AG10: =MIN(AG11:AG41) -> 4 | AO10: Nutidsværdien af rentefradragsretten | BE10: Netto- | BF10: afkast | BG10: skat af
A11: 0 | B11: =B6*-1 -> -2000000 | C11: =VLOOKUP(B9,A12:C41,3) -> 500000 | I11: =B11 -> -2000000 | K11: =I11 -> -2000000 | Q11: =I11 -> -2000000 | S11: =I11 -> -2000000 | AG11: =IF(K11>0.2,A11,"") ->  | AO11: Renten efter skat indarbejder rentefradragsretten i renten | BE11: Betaling | BF11: =P9 -> 0.4 | BG11: afskrivning
A12: 1 | C12: =IF($B$9=$A12,C$6*(1+C$9)^A12,0) -> 0 | D12: =IF($B$9>=$A12,D$6*(1+D$9)^A12,0) -> 2000000 | E12: =IF($B$9>=$A12,-E$6*(1+E$9)^$A12,0) -> -1332667 | F12: =D12+E12 -> 667333 | G12: =IF($B$9>=$A12,-G$6*(1+G$9)^$A12,0) -> -11000 | H12: =F12+G12 -> 656333 | I12: =H12+C12 -> 656333 | J12: =IF(B$9>=A12,K11*B$4,0) -> -100000 | K12: =IF(B$9>=A12,K11+J12+I12,0) -> -1443667 | L12: =B11*-1 -> 2000000 | M12: =IF($B$9>=A12+1,-L12*M$8/100) -> -500000 | N12: =IF(M$8>0,IF(A12=B$9,(C12-(L12+M12))*$N$8,0),0) -> 0 | O12: =H12+M12+N12 -> 156333 | P12: =O12*$P$9*-1 -> -62533.2 | Q12: =H12+P12+C12 -> 593799.8 | R12: =IF(A12<=B$9,S11*L$9,0) -> -60000 | S12: =IF(B$9>=A12,S11+R12+Q12,0) -> -1466200.2 | AO12: Skal man isolere værdien af rentefradragsretten, kan man gøre det ved at | BE12: =H12 -> 656333 | BF12: =BE12*$BF$11*-1 -> -262533.2 | BG12: =(M12+N12)*$BF$11*-1 -> 200000
A13: 2 | C13: =IF($B$9=$A13,C$6*(1+C$9)^A13,0) -> 0 | D13: =IF($B$9>=$A13,D$6*(1+D$9)^A13,0) -> 2000000 | E13: =IF($B$9>=$A13,-E$6*(1+E$9)^$A13,0) -> -1332667 | F13: 667333 | G13: =IF($B$9>=$A13,-G$6*(1+G$9)^$A13,0) -> -11000 | H13: 656333 | I13: 656333 | J13: =IF(B$9>=A13,K12*B$4,0) -> -72183.35 | K13: =IF(B$9>=A13,K12+J13+I13,0) -> -859517.35 | L13: =IF(B$9>=A13,L12+M12,0) -> 1500000 | M13: =IF($B$9>=A13,IF(M$5="l",IF(M12*-1<=L13,M12,0),-L13*M$8/100),0) -> -375000 | N13: 0 | O13: 281333 | P13: =O13*$P$9*-1 -> -112533.2 | Q13: =H13+P13+C13 -> 543799.8 | R13: -43986.006 | S13: =IF(B$9>=A13,S12+R13+Q13,0) -> -966386.406 | AO13: beregne en nutidsværdi med før-skat-renten og beregne en nutidsværdi | BE13: 656333 | BF13: -262533.2 | BG13: 150000
A14: 3 | C14: 0 | D14: 2000000 | E14: -1332667 | F14: 667333 | G14: -11000 | H14: 656333 | I14: 656333 | J14: -42975.8675 | K14: -246160.2175 | L14: 1125000 | M14: -281250 | N14: 0 | O14: 375083 | P14: -150033.2 | Q14: 506299.8 | R14: -28991.59218 | S14: -489078.1982 | AF14: =IF(S14>0.2,A14,"") ->  | AO14: med efter-skat-renten. Forskellen på de to er er nutidsværdien af rentefradragsretten | BE14: 656333 | BF14: -262533.2 | BG14: 112500
A15: 4 | C15: 0 | D15: 2000000 | E15: -1332667 | F15: 667333 | G15: -11000 | H15: 656333 | I15: 656333 | J15: -12308.01088 | K15: 397864.7716 | L15: 843750 | M15: -210937.5 | N15: 0 | O15: 445395.5 | P15: -178158.2 | Q15: 478174.8 | R15: -14672.34595 | S15: -25575.74413 | AF15: =IF(S15>0.2,A15,"") ->  | AG15: =IF(K15>0.2,A15,"") -> 4 | AO15: på den pengestrøm. | BE15: 656333 | BF15: -262533.2 | BG15: 84375
A16: 5 | C16: 0 | D16: 2000000 | E16: -1332667 | F16: 667333 | G16: -11000 | H16: 656333 | I16: 656333 | J16: 19893.23858 | K16: 1074091.01 | L16: 632812.5 | M16: -158203.125 | N16: 0 | O16: 498129.875 | P16: -199251.95 | Q16: 457081.05 | R16: -767.2723238 | S16: 430738.0336 | AF16: 5 | AG16: 5 | AO16: Ko efter skat uden rentefradragsret | AR16: =NPV(B4,$Q$12:$Q$41)+Q11 -> 1896267.862 | AT16: nutidsværdien af betalingsstrømmen efter skat med renten før skat | BE16: 656333 | BF16: -262533.2 | BG16: 63281.25
A17: 6 | C17: 0 | D17: 2000000 | E17: -1332667 | F17: 667333 | G17: -11000 | H17: 656333 | I17: 656333 | J17: 53704.55051 | K17: 1784128.561 | L17: 474609.375 | M17: -118652.3438 | N17: 0 | O17: 537680.6562 | P17: -215072.2625 | Q17: 441260.7375 | R17: 12922.14101 | S17: 884920.9121 | AF17: 6 | AG17: 6 | AO17: Ko efter skat (med rentefradragsret) | AR17: =NPV(L9,$Q$12:$Q$41)+Q11 -> 2300297.706 | AT17: nutidsværdien af betalingsstrømmen efter skat med renten efter skat, svarende til Ko efter skat | BE17: 656333 | BF17: -262533.2 | BG17: 47460.9375
A18: 7 | C18: 0 | D18: 2000000 | E18: -1332667 | F18: 667333 | G18: -11000 | H18: 656333 | I18: 656333 | J18: 89206.42804 | K18: 2529667.989 | L18: 355957.0312 | M18: -88989.25781 | N18: 0 | O18: 567343.7422 | P18: -226937.4969 | Q18: 429395.5031 | R18: 26547.62736 | S18: 1340864.043 | AF18: 7 | AG18: 7 | AO18: Ko forskel | AR18: =AR17-AR16 -> 404029.8445 | AT18: forskel i kapitalværdi af beløb efter skat, hvis du regner med før og efter skat rente | BE18: 656333 | BF18: -262533.2 | BG18: 35595.70312
A19: 8 | C19: 0 | D19: 2000000 | E19: -1332667 | F19: 667333 | G19: -11000 | H19: 656333 | I19: 656333 | J19: 126483.3994 | K19: 3312484.388 | L19: 266967.7734 | M19: -66741.94336 | N19: 0 | O19: 589591.0566 | P19: -235836.4227 | Q19: 420496.5773 | R19: 40225.92128 | S19: 1801586.541 | AF19: 8 | AG19: 8 | AO19: Manglende beløb i skattevirkning | AR19: =AL7-AL2-AK3-AK4 -> 404029.8445 | AT19: beregnet som det, der mangler i forklaringen ovenfor | BE19: 656333 | BF19: -262533.2 | BG19: 26696.77734
A20: 9 | C20: 0 | D20: 2000000 | E20: -1332667 | F20: 667333 | G20: -11000 | H20: 656333 | I20: 656333 | J20: 165624.2194 | K20: 4134441.608 | L20: 200225.8301 | M20: -50056.45752 | N20: 0 | O20: 606276.5425 | P20: -242510.617 | Q20: 413822.383 | R20: 54047.59623 | S20: 2269456.52 | AF20: 9 | AG20: 9 | AO20: Forskel | AR20: =AR19-AR18 -> 0 | AT20: Kontrol, skal være nul | BE20: 656333 | BF20: -262533.2 | BG20: 20022.58301
A21: 10 | C21: 500000 | D21: 2000000 | E21: -1332667 | F21: 667333 | G21: -11000 | H21: 656333 | I21: 1156333 | J21: 206722.0804 | K21: 5497496.688 | L21: 150169.3726 | M21: -37542.34314 | N21: 387372.9706 | O21: 1006163.627 | P21: -402465.451 | Q21: 753867.549 | R21: 68083.69561 | S21: 3091407.765 | AF21: 10 | AG21: 10 | BE21: 656333 | BF21: -262533.2 | BG21: -139932.251
A22: 11 | C22: 0 | D22: 0 | E22: 0 | F22: 0 | G22: 0 | H22: 0 | I22: 0 | J22: 0 | K22: 0 | L22: 0 | M22: 0 | N22: 0 | O22: 0 | P22: 0 | Q22: 0 | R22: 0 | S22: 0 | BE22: 0 | BF22: 0 | BG22: 0
A23: 12 | C23: 0 | D23: 0 | E23: 0 | F23: 0 | G23: 0 | H23: 0 | I23: 0 | J23: 0 | K23: 0 | L23: 0 | M23: 0 | N23: 0 | O23: 0 | P23: 0 | Q23: 0 | R23: 0 | S23: 0 | BE23: 0 | BF23: 0 | BG23: 0
A24: 13 | C24: 0 | D24: 0 | E24: 0 | F24: 0 | G24: 0 | H24: 0 | I24: 0 | J24: 0 | K24: 0 | L24: 0 | M24: 0 | N24: 0 | O24: 0 | P24: 0 | Q24: 0 | R24: 0 | S24: 0 | BE24: 0 | BF24: 0 | BG24: 0
A25: 14 | C25: 0 | D25: 0 | E25: 0 | F25: 0 | G25: 0 | H25: 0 | I25: 0 | J25: 0 | K25: 0 | L25: 0 | M25: 0 | N25: 0 | O25: 0 | P25: 0 | Q25: 0 | R25: 0 | S25: 0 | BE25: 0 | BF25: 0 | BG25: 0
A26: 15 | C26: 0 | D26: 0 | E26: 0 | F26: 0 | G26: 0 | H26: 0 | I26: 0 | J26: 0 | K26: 0 | L26: 0 | M26: 0 | N26: 0 | O26: 0 | P26: 0 | Q26: 0 | R26: 0 | S26: 0 | BE26: 0 | BF26: 0 | BG26: 0
A27: 16 | C27: 0 | D27: 0 | E27: 0 | F27: 0 | G27: 0 | H27: 0 | I27: 0 | J27: 0 | K27: 0 | L27: 0 | M27: 0 | N27: 0 | O27: 0 | P27: 0 | Q27: 0 | R27: 0 | S27: 0 | BE27: 0 | BF27: 0 | BG27: 0
A28: 17 | C28: 0 | D28: 0 | E28: 0 | F28: 0 | G28: 0 | H28: 0 | I28: 0 | J28: 0 | K28: 0 | L28: 0 | M28: 0 | N28: 0 | O28: 0 | P28: 0 | Q28: 0 | R28: 0 | S28: 0 | BE28: 0 | BF28: 0 | BG28: 0
A29: 18 | C29: 0 | D29: 0 | E29: 0 | F29: 0 | G29: 0 | H29: 0 | I29: 0 | J29: 0 | K29: 0 | L29: 0 | M29: 0 | N29: 0 | O29: 0 | P29: 0 | Q29: 0 | R29: 0 | S29: 0 | BE29: 0 | BF29: 0 | BG29: 0
A30: 19 | C30: 0 | D30: 0 | E30: 0 | F30: 0 | G30: 0 | H30: 0 | I30: 0 | J30: 0 | K30: 0 | L30: 0 | M30: 0 | N30: 0 | O30: 0 | P30: 0 | Q30: 0 | R30: 0 | S30: 0 | BE30: 0 | BF30: 0 | BG30: 0
A31: 20 | C31: 0 | D31: 0 | E31: 0 | F31: 0 | G31: 0 | H31: 0 | I31: 0 | J31: 0 | K31: 0 | L31: 0 | M31: 0 | N31: 0 | O31: 0 | P31: 0 | Q31: 0 | R31: 0 | S31: 0 | BE31: 0 | BF31: 0 | BG31: 0
A32: 21 | C32: 0 | D32: 0 | E32: 0 | F32: 0 | G32: 0 | H32: 0 | I32: 0 | J32: 0 | K32: 0 | L32: 0 | M32: 0 | N32: 0 | O32: 0 | P32: 0 | Q32: 0 | R32: 0 | S32: 0 | BE32: 0 | BF32: 0 | BG32: 0
A33: 22 | C33: 0 | D33: 0 | E33: 0 | F33: 0 | G33: 0 | H33: 0 | I33: 0 | J33: 0 | K33: 0 | L33: 0 | M33: 0 | N33: 0 | O33: 0 | P33: 0 | Q33: 0 | R33: 0 | S33: 0 | BE33: 0 | BF33: 0 | BG33: 0
A34: 23 | C34: 0 | D34: 0 | E34: 0 | F34: 0 | G34: 0 | H34: 0 | I34: 0 | J34: 0 | K34: 0 | L34: 0 | M34: 0 | N34: 0 | O34: 0 | P34: 0 | Q34: 0 | R34: 0 | S34: 0 | BE34: 0 | BF34: 0 | BG34: 0
A35: 24 | C35: 0 | D35: 0 | E35: 0 | F35: 0 | G35: 0 | H35: 0 | I35: 0 | J35: 0 | K35: 0 | L35: 0 | M35: 0 | N35: 0 | O35: 0 | P35: 0 | Q35: 0 | R35: 0 | S35: 0 | BE35: 0 | BF35: 0 | BG35: 0
A36: 25 | C36: 0 | D36: 0 | E36: 0 | F36: 0 | G36: 0 | H36: 0 | I36: 0 | J36: 0 | K36: 0 | L36: 0 | M36: 0 | N36: 0 | O36: 0 | P36: 0 | Q36: 0 | R36: 0 | S36: 0 | BE36: 0 | BF36: 0 | BG36: 0
A37: 26 | C37: 0 | D37: 0 | E37: 0 | F37: 0 | G37: 0 | H37: 0 | I37: 0 | J37: 0 | K37: 0 | L37: 0 | M37: 0 | N37: 0 | O37: 0 | P37: 0 | Q37: 0 | R37: 0 | S37: 0 | BE37: 0 | BF37: 0 | BG37: 0
A38: 27 | C38: 0 | D38: 0 | E38: 0 | F38: 0 | G38: 0 | H38: 0 | I38: 0 | J38: 0 | K38: 0 | L38: 0 | M38: 0 | N38: 0 | O38: 0 | P38: 0 | Q38: 0 | R38: 0 | S38: 0 | BE38: 0 | BF38: 0 | BG38: 0
A39: 28 | C39: 0 | D39: 0 | E39: 0 | F39: 0 | G39: 0 | H39: 0 | I39: 0 | J39: 0 | K39: 0 | L39: 0 | M39: 0 | N39: 0 | O39: 0 | P39: 0 | Q39: 0 | R39: 0 | S39: 0 | BE39: 0 | BF39: 0 | BG39: 0
A40: 29 | C40: 0 | D40: 0 | E40: 0 | F40: 0 | G40: 0 | H40: 0 | I40: 0 | J40: 0 | K40: 0 | L40: 0 | M40: 0 | N40: 0 | O40: 0 | P40: 0 | Q40: 0 | R40: 0 | S40: 0 | BE40: 0 | BF40: 0 | BG40: 0
A41: 30 | C41: 0 | D41: 0 | E41: 0 | F41: 0 | G41: 0 | H41: 0 | I41: 0 | J41: =IF(B$9>=A41,K40*B$4,0) -> 0 | K41: 0 | L41: 0 | M41: 0 | N41: 0 | O41: 0 | P41: 0 | Q41: 0 | R41: 0 | S41: 0 | BE41: 0 | BF41: 0 | BG41: 0
A42: =Rentabilitet!G42 -> © CHA 21.09.2023
N43: =IF($B$9>=A43,M42*M$8/100*1,0) -> 0 | P43: =(N43-O43)*P$9/100 -> 0
S57: =S56+I57 -> 0
S58: 0
S59: 0
A61: År for år omkostning ved maskinstation, ny maskine og gammel maskine
A63: Maskinstation (udbytte) | F63: Nye maskine fra rentabilitetsberegning | L63: Gamle maskine
B64: Gns. årlige omkostninger | D64: Gns. | G64: Gns. årlige omkostninger | J64: Gns. | M64: Maskinens | N64: Afskrivning | O64: Forrentning | P64: År for år | Q64: År for år | R64: År for år | S64: År for år
A65: År | B65: Udbytte | C65: Korrektion | D65: årlige omk | F65: År | G65: Stykomk. | H65: Kap. omk. | I65: GKO | J65: årlige omk | L65: År | M65: Værdi | N65: 0.15 | O65: =B4 -> 0.05 | P65: Stykomk. | Q65: Kap. omk. | R65: KO | S65: omk. i alt
A66: 1 | B66: =D12 -> 2000000 | D66: =B66+C66 -> 2000000 | F66: 1 | G66: =E12*-1 -> 1332667 | H66: =G12*-1 -> 11000 | I66: =IF(F66<=$B$9,$K$4,0)*-1 -> 219256.8624 | J66: =SUM(G66:I66) -> 1562923.862 | L66: =F66 -> 1 | M66: 500000 | N66: =M66*$N$65 -> 75000 | O66: =M66*$O$65 -> 25000 | R66: =N66+O66 -> 100000 | S66: =N66+O66+P66+Q66 -> 100000
A67: 2 | B67: =D13 -> 2000000 | D67: =B67+C67 -> 2000000 | F67: 2 | G67: =E13*-1 -> 1332667 | H67: =G13*-1 -> 11000 | I67: =IF(F67<=$B$9,$K$4,0)*-1 -> 219256.8624 | J67: =SUM(G67:I67) -> 1562923.862 | L67: 2 | M67: =IF(F67<=$B$9,M66-N66,0) -> 425000 | N67: 63750 | O67: 21250 | R67: =N67+O67 -> 85000 | S67: =N67+O67+P67+Q67 -> 85000
A68: 3 | B68: 2000000 | D68: 2000000 | F68: 3 | G68: 1332667 | H68: 11000 | I68: 219256.8624 | J68: 1562923.862 | L68: 3 | M68: 361250 | N68: 54187.5 | O68: 18062.5 | R68: 72250 | S68: 72250
A69: 4 | B69: 2000000 | D69: 2000000 | F69: 4 | G69: 1332667 | H69: 11000 | I69: 219256.8624 | J69: 1562923.862 | L69: 4 | M69: 307062.5 | N69: 46059.375 | O69: 15353.125 | R69: 61412.5 | S69: 61412.5
A70: 5 | B70: 2000000 | D70: 2000000 | F70: 5 | G70: 1332667 | H70: 11000 | I70: 219256.8624 | J70: 1562923.862 | L70: 5 | M70: 261003.125 | N70: 39150.46875 | O70: 13050.15625 | R70: 52200.625 | S70: 52200.625
A71: 6 | B71: 2000000 | D71: 2000000 | F71: 6 | G71: 1332667 | H71: 11000 | I71: 219256.8624 | J71: =SUM(G71:I71) -> 1562923.862 | L71: 6 | M71: 221852.6562 | N71: 33277.89844 | O71: 11092.63281 | R71: 44370.53125 | S71: 44370.53125
A72: 7 | B72: 2000000 | D72: 2000000 | F72: 7 | G72: 1332667 | H72: 11000 | I72: 219256.8624 | J72: 1562923.862 | L72: 7 | M72: 188574.7578 | N72: 28286.21367 | O72: 9428.737891 | R72: 37714.95156 | S72: 37714.95156
A73: 8 | B73: 2000000 | D73: 2000000 | F73: 8 | G73: 1332667 | H73: 11000 | I73: 219256.8624 | J73: 1562923.862 | L73: 8 | M73: 160288.5441 | N73: 24043.28162 | O73: 8014.427207 | R73: 32057.70883 | S73: 32057.70883
A74: 9 | B74: 2000000 | D74: 2000000 | F74: 9 | G74: 1332667 | H74: 11000 | I74: 219256.8624 | J74: 1562923.862 | L74: 9 | M74: 136245.2625 | N74: 20436.78938 | O74: 6812.263126 | R74: 27249.0525 | S74: 27249.0525
A75: 10 | B75: 2000000 | D75: 2000000 | F75: 10 | G75: 1332667 | H75: 11000 | I75: 219256.8624 | J75: 1562923.862 | L75: 10 | M75: 115808.4731 | N75: 17371.27097 | O75: 5790.423657 | R75: 23161.69463 | S75: 23161.69463
K130: -123456 | L130: 1234567891 | M130: 123456789
M157: Afskrining | N157: Forrentning | O157: Stykomk.
J160: 0 | K160: =K11 -> -2000000 | M160: Maskinstation | N160: Nye | O160: Gamle | S160: =S11 -> -2000000
J161: 1 | K161: =K12 -> -1443667 | M161: =D66 -> 2000000 | N161: =J66 -> 1562923.862 | O161: =S66 -> 100000 | S161: =S12 -> -1466200.2
J162: 2 | K162: -859517.35 | M162: =D67 -> 2000000 | N162: =J67 -> 1562923.862 | O162: =S67 -> 85000 | S162: -966386.406
J163: 3 | K163: -246160.2175 | M163: =D68 -> 2000000 | N163: =J68 -> 1562923.862 | O163: =S68 -> 72250 | S163: -489078.1982
J164: 4 | K164: 397864.7716 | M164: =D69 -> 2000000 | N164: =J69 -> 1562923.862 | O164: =S69 -> 61412.5 | S164: -25575.74413
J165: 5 | K165: 1074091.01 | M165: =D70 -> 2000000 | N165: =J70 -> 1562923.862 | O165: =S70 -> 52200.625 | S165: 430738.0336
J166: 6 | K166: 1784128.561 | M166: =D71 -> 2000000 | N166: =J71 -> 1562923.862 | O166: =S71 -> 44370.53125 | S166: 884920.9121
J167: 7 | K167: 2529667.989 | M167: 2000000 | N167: 1562923.862 | O167: 37714.95156 | S167: 1340864.043
J168: 8 | K168: 3312484.388 | M168: 2000000 | N168: 1562923.862 | O168: 32057.70883 | S168: 1801586.541
J169: 9 | K169: 4134441.608 | M169: 2000000 | N169: 1562923.862 | O169: 27249.0525 | S169: 2269456.52
J170: 10 | K170: 5497496.688 | M170: 2000000 | N170: 1562923.862 | O170: 23161.69463 | S170: 3091407.765
J171: 11 | K171: 0 | M171: 0 | N171: 0 | O171: 0 | S171: 0
J172: 12 | K172: 0 | M172: 0 | N172: 0 | O172: 0 | S172: 0
J173: 13 | K173: 0 | M173: 0 | N173: 0 | O173: 0 | S173: 0
J174: 14 | K174: 0 | M174: 0 | N174: 0 | O174: 0 | S174: 0
J175: 15 | K175: 0 | M175: 0 | N175: 0 | O175: 0 | S175: 0
J176: 16 | K176: 0 | M176: 0 | N176: 0 | O176: 0 | S176: 0
J177: 17 | K177: 0 | M177: 0 | N177: 0 | O177: 0 | S177: 0
J178: 18 | K178: 0 | M178: 0 | N178: 0 | O178: 0 | S178: 0
J179: 19 | K179: 0 | M179: 0 | N179: 0 | O179: 0 | S179: 0
J180: 20 | K180: 0 | M180: 0 | N180: 0 | O180: 0 | S180: 0
J181: 21 | K181: 0 | M181: 0 | N181: 0 | O181: 0 | S181: 0
J182: 22 | K182: 0 | M182: 0 | N182: 0 | O182: 0 | S182: 0
J183: 23 | K183: 0 | M183: 0 | N183: 0 | O183: 0 | S183: 0
J184: 24 | K184: 0 | M184: 0 | N184: 0 | O184: 0 | S184: 0
J185: 25 | K185: 0 | M185: 0 | N185: 0 | O185: 0 | S185: 0
J186: 26 | K186: 0 | M186: 0 | N186: 0 | O186: 0 | S186: 0
J187: 27 | K187: 0 | M187: 0 | N187: 0 | O187: 0 | S187: 0
J188: 28 | K188: 0 | M188: 0 | N188: 0 | O188: 0 | S188: 0
J189: 29 | K189: 0 | M189: 0 | N189: 0 | O189: 0 | S189: 0
J190: 30 | K190: 0 | M190: 0 | N190: 0 | O190: 0 | S190: 0
K191: 0 | M191: 0 | N191: 0 | O191: 0 | S191: 0
K192: 0 | S192: 0
K193: 0 | S193: 0
K194: 0 | S194: 0
K195: 0 | S195: 0
K196: 0 | S196: 0
K197: 0 | S197: 0
K198: 0 | S198: 0
K199: 0 | S199: 0
K200: 0 | S200: 0
K201: 0 | S201: 0
K202: 0 | S202: 0
K203: 0 | S203: 0
K204: 0 | S204: 0
K205: 0 | S205: 0
K206: 0 | S206: 0
K207: 0 | S207: 0
K208: 0
K209: 0
K210: 0
K211: 0
K212: 0
K213: 0
K214: 0
K215: 0
K216: 0
K217: 0
K218: 0
K219: 0
K220: 0
K221: 0
K222: 0
K223: 0
K224: 0
K225: =K76 -> 0
K226: 0
K227: 0 | S227: =S78 -> 0
K228: 0 | S228: 0
K229: 0 | S229: 0
K230: 0 | S230: 0
K231: 0 | S231: 0
K232: 0 | S232: 0
K233: 0 | S233: 0
K234: 0 | S234: 0
K235: 0 | S235: 0
K236: 0 | S236: 0
K237: 0 | S237: 0
K238: 0 | S238: 0
K239: 0 | S239: 0
K240: 0 | S240: 0
K241: 0 | S241: 0
K242: 0 | S242: 0
K243: 0 | S243: 0
K244: 0 | S244: 0
K245: 0 | S245: 0
K246: 0 | S246: 0
K247: 0 | S247: 0
K248: 0 | S248: 0
K249: 0 | S249: 0
K250: 0 | S250: 0
K251: 0 | S251: 0
K252: 0 | S252: 0
K253: 0 | S253: 0
K254: 0 | S254: 0
K255: 0 | S255: 0
K256: 0 | S256: 0
K257: 0 | S257: 0
K258: 0 | S258: 0
K259: 0 | S259: 0
K260: 0 | S260: 0
K261: 0 | S261: 0
K262: 0 | S262: 0
K263: 0 | S263: 0
K264: 0 | S264: 0
K265: 0 | S265: 0
K266: 0 | S266: 0
K267: 0 | S267: 0
K268: 0 | S268: 0
K269: 0 | S269: 0
K270: 0 | S270: 0
K271: 0 | S271: 0
K272: 0 | S272: 0
K273: 0 | S273: 0
K274: 0 | S274: 0
S275: 0
S276: 0
S277: 0
S278: 0
S279: 0
S280: 0
S281: 0
S282: 0
S283: 0
K284: 0 | S284: 0
K285: 0 | S285: 0
K286: 0 | S286: 0
K287: 0 | S287: 0
K288: 0 | S288: 0
K289: =K140 -> 0 | S289: =S140 -> 0
K290: 0 | S290: 0
K291: 0 | S291: 0
K292: 0 | S292: 0
K293: 0 | S293: 0
K294: 0 | S294: 0
K295: 0 | S295: 0
K296: 0 | S296: 0
K297: 0 | S297: 0
... 111 more rows

Sheet Cashflow
B1: Investering | C1: Udbytte | D1: Stykomkostninger | E1: Scrap | H1: Cashflow
N2: Arket er beskyttet men uden kode.
H3: Rente | I3: KAPITALVÆRDI | K3: Likviditet | N3: Indsæt evt. flere kolonner til ind- og udbetalinger.
H4: 0.06 | I4: =NPV(H4,AE10:AE39)+AE9 -> 3236365.977 | J4: kr. | K4: Slutsaldo år | L4: =H6 -> 8 | M4: =VLOOKUP($H$6,G9:J39,4) -> 5158275.681
H5: Levetid i år | I5: INTERN RENTE | K5: / forrentningsfaktor | M5: =(1+H4)^H6 -> 1.593848075
H6: =MAX(AD9:AD39) -> 8 | I6: =IF(MIN(B9:F39)<0,IRR(H9:H39,H4/100)*100,"") -> 80.5298359 | J6: % | K6: = kapitalværdi år 0 | M6: =M4/M5 -> 3236365.977
I7: Pay back | J7: =IF(MIN(AC9:AC39)>H6,"",MIN(AC9:AC39)) -> 2
A8: År | G8: År | H8: Pengestrøm | I8: Rente | J8: KK-saldo | K8: / Forretningsfaktor = | M8: Opsum K0 | AD8: Skygge | AF8: termin | AG8: år
A9: =IF(ISBLANK($M$1),AF9,AG9) -> 0 | B9: -800000 | G9: 0 | H9: =SUM(B9:F9) -> -800000 | J9: =H9 -> -800000 | K9: =IF(L9<>0,"/","") -> / | L9: 1 | M9: =H9 -> -800000 | AC9: =IF(J9>0.2,AF9,"") ->  | AD9: =IF(H9<>0,A9,"") -> 0 | AE9: =H9 -> -800000 | AF9: 0 | AG9: =M1 -> 0
A10: 1 | C10: 650000 | G10: 1 | H10: =SUM(B10:F10) -> 650000 | I10: =IF($H$6>=$AF10,J9*H$4,0) -> -48000 | J10: =IF($H$6>=$AF10,J9+I10+H10,0) -> -198000 | K10: =IF($H$6>=$AF10,"/","") -> / | L10: =IF($H$6>=$AF10,J10/M10,"") -> 1.06 | M10: =IF($H$6>=$AF10,J10/(1+H$4)^AF10,"") -> -186792.4528 | AD10: =IF(H10<>0,AF10,"") -> 1 | AE10: 650000 | AF10: 1 | AG10: =AG9+1 -> 1
A11: 2 | C11: 650000 | G11: 2 | H11: 650000 | I11: -11880 | J11: 440120 | K11: =IF($H$6>=$AF11,"/","") -> / | L11: =IF($H$6>=$AF11,J11/M11,"") -> 1.1236 | M11: 391705.2332 | AC11: 2 | AD11: 2 | AE11: 650000 | AF11: 2 | AG11: =AG10+1 -> 2
A12: 3 | C12: 650000 | G12: 3 | H12: 650000 | I12: 26407.2 | J12: 1116527.2 | K12: / | L12: 1.191016 | M12: 937457.7672 | AC12: 3 | AD12: 3 | AE12: 650000 | AF12: 3 | AG12: 3
A13: 4 | C13: 650000 | E13: , | G13: 4 | H13: 650000 | I13: 66991.632 | J13: 1833518.832 | K13: / | L13: 1.26247696 | M13: 1452318.648 | AC13: 4 | AD13: 4 | AE13: 650000 | AF13: 4 | AG13: 4
A14: 5 | C14: 650000 | G14: 5 | H14: 650000 | I14: 110011.1299 | J14: 2593529.962 | K14: / | L14: 1.338225578 | M14: 1938036.461 | AC14: 5 | AD14: 5 | AE14: 650000 | AF14: 5 | AG14: 5
A15: 6 | C15: 650000 | G15: 6 | H15: 650000 | I15: 155611.7977 | J15: 3399141.76 | K15: / | L15: 1.418519112 | M15: 2396260.812 | AC15: 6 | AD15: 6 | AE15: 650000 | AF15: 6 | AG15: 6
A16: 7 | C16: 650000 | G16: 7 | H16: 650000 | I16: 203948.5056 | J16: 4253090.265 | K16: / | L16: 1.503630259 | M16: 2828547.936 | AC16: 7 | AD16: 7 | AE16: 650000 | AF16: 7 | AG16: 7
A17: 8 | C17: 650000 | G17: 8 | H17: 650000 | I17: 255185.4159 | J17: 5158275.681 | K17: / | L17: 1.593848075 | M17: 3236365.977 | AC17: 8 | AD17: 8 | AE17: 650000 | AF17: 8 | AG17: 8
A18: 9 | G18: 9 | H18: 0 | I18: 0 | J18: 0 | AE18: 0 | AF18: 9 | AG18: 9
A19: 10 | G19: 10 | H19: 0 | I19: 0 | J19: 0 | AE19: 0 | AF19: 10 | AG19: 10
A20: 11 | G20: 11 | H20: 0 | I20: 0 | J20: 0 | AE20: 0 | AF20: 11 | AG20: 11
A21: 12 | G21: 12 | H21: 0 | I21: 0 | J21: 0 | AE21: 0 | AF21: 12 | AG21: 12
A22: 13 | G22: 13 | H22: 0 | I22: 0 | J22: 0 | AE22: 0 | AF22: 13 | AG22: 13
A23: 14 | G23: 14 | H23: 0 | I23: 0 | J23: 0 | AE23: 0 | AF23: 14 | AG23: 14
A24: 15 | G24: 15 | H24: 0 | I24: 0 | J24: 0 | AE24: 0 | AF24: 15 | AG24: 15
A25: 16 | G25: 16 | H25: 0 | I25: 0 | J25: 0 | AE25: 0 | AF25: 16 | AG25: 16
A26: 17 | G26: 17 | H26: 0 | I26: 0 | J26: 0 | AE26: 0 | AF26: 17 | AG26: 17
A27: 18 | G27: 18 | H27: 0 | I27: 0 | J27: 0 | AE27: 0 | AF27: 18 | AG27: 18
A28: 19 | G28: 19 | H28: 0 | I28: 0 | J28: 0 | AE28: 0 | AF28: 19 | AG28: 19
A29: 20 | G29: 20 | H29: 0 | I29: 0 | J29: 0 | AE29: 0 | AF29: 20 | AG29: 20
A30: 21 | G30: 21 | H30: 0 | I30: 0 | J30: 0 | AE30: 0 | AF30: 21 | AG30: 21
A31: 22 | G31: 22 | H31: 0 | I31: 0 | J31: 0 | AE31: 0 | AF31: 22 | AG31: 22
A32: 23 | G32: 23 | H32: 0 | I32: 0 | J32: 0 | AE32: 0 | AF32: 23 | AG32: 23
A33: 24 | G33: 24 | H33: 0 | I33: 0 | J33: 0 | AE33: 0 | AF33: 24 | AG33: 24
A34: 25 | G34: 25 | H34: 0 | I34: 0 | J34: 0 | AE34: 0 | AF34: 25 | AG34: 25
A35: 26 | G35: 26 | H35: 0 | I35: 0 | J35: 0 | AE35: 0 | AF35: 26 | AG35: 26
A36: 27 | G36: 27 | H36: 0 | I36: 0 | J36: 0 | AE36: 0 | AF36: 27 | AG36: 27
A37: 28 | G37: 28 | H37: 0 | I37: 0 | J37: 0 | AE37: 0 | AF37: 28 | AG37: 28
A38: 29 | G38: 29 | H38: 0 | I38: 0 | J38: 0 | AE38: 0 | AF38: 29 | AG38: 29
A39: 30 | G39: 30 | H39: 0 | I39: 0 | J39: 0 | AE39: 0 | AF39: 30 | AG39: 30
M57: =Rentabilitet!G42 -> © CHA 21.09.2023
A63: 0 | J63: =J9 -> -800000
A64: 1 | J64: =J10 -> -198000
A65: 2 | J65: 440120
A66: 3 | J66: 1116527.2
A67: 4 | J67: 1833518.832
A68: 5 | J68: 2593529.962
A69: 6 | J69: 3399141.76
A70: 7 | J70: 4253090.265
A71: 8 | J71: 5158275.681
A72: 9 | J72: 0
A73: 10 | J73: 0
A74: 11 | J74: 0
A75: 12 | J75: 0
A76: 13 | J76: 0
A77: 14 | J77: 0
A78: 15 | J78: 0
A79: 16 | J79: 0
A80: 17 | J80: 0
A81: 18 | J81: 0
A82: 19 | J82: 0
A83: 20 | J83: 0
A84: 21 | J84: 0
A85: 22 | J85: 0
A86: 23 | J86: 0
A87: 24 | J87: 0
A88: 25 | J88: 0
A89: 26 | J89: 0
A90: 27 | J90: 0
A91: 28 | J91: 0
A92: 29 | J92: 0
A93: 30 | J93: 0
J108: 0
J109: 0
J110: 0
J111: 0

Sheet Forudsætninger
A1: Her kan du lave forudsætninger og mellemregninger til brug for rentabilitetsarkene
